fUST/lending_fUST_20250513
["ID","MTS","AMOUNT","RATE_DAILY","PERIOD"]
[360912593,1747141698632,-405.8,0.00013698,2]
[360912594,1747141698664,-400.0,0.00013698,2]
[360912595,1747141698696,-936.88,0.00013698,2]
[360912596,1747141698729,-400.0,0.00013698,2]
[360912597,1747141698765,-400.0,0.00013698,2]
[360912598,1747141698804,-853.16,0.00013698,2]
[360912599,1747141698839,-423.3,0.00013698,2]
[360912600,1747141698873,-400.0,0.00013698,2]
[360912601,1747141698906,-400.0,0.00013698,2]
[360912602,1747141698939,-550.5,0.00013698,2]
[360912603,1747141698972,-400.0,0.00013698,2]
[360912604,1747141699003,-402.82686752,0.00013698,2]
[360912605,1747141699036,-400.0,0.00013698,2]
[360912606,1747141699069,-417.89,0.00013698,2]
[360912607,1747141699103,-401.05,0.00013698,2]
[360912608,1747141699134,-487.75,0.00013698,2]
[360912609,1747141699169,-400.0,0.00013698,2]
[360912610,1747141699199,-400.0,0.00013698,2]
[360912611,1747141699229,-2431.56,0.00013698,2]
[360912612,1747141699264,-400.0,0.00013698,2]
[360912613,1747141699294,-400.0,0.00013698,2]
[360912614,1747141699325,-1108.8,0.00013698,2]
[360912615,1747141699356,-400.0,0.00013698,2]
[360912616,1747141699387,-188.75970664,0.00013698,2]
[360912617,1747141699415,-503.07599539,0.00013698,2]
[360912618,1747141699446,-5104.4,0.00013698,2]
[360912619,1747141699476,-400.0,0.00013698,2]
[360912620,1747141699506,-744.52,0.00013698,2]
[360912621,1747141699541,-1375.16,0.00013698,2]
[360912622,1747141699574,-400.0,0.00013698,2]
[360912623,1747141699610,-400.0,0.00013698,2]
[360912624,1747141699647,-525.82276732,0.00013698,2]
[360912625,1747141699679,-400.0,0.00013698,2]
[360912626,1747141699712,-1223.51,0.00013698,2]
[360912627,1747141699747,-1878.39,0.00013698,2]
[360912628,1747141699779,-400.0,0.00013698,2]
[360912629,1747141699810,-582.6,0.00013698,2]
[360912630,1747141699842,-400.0,0.00013698,2]
[360912631,1747141699874,-400.0,0.00013698,2]
[360912632,1747141699906,-1304.35,0.00013698,2]
[360912633,1747141699938,-486.14,0.00013698,2]
[360912634,1747141699970,-151.0,0.00013698,2]
[360912635,1747141700003,-151.0,0.00013698,2]
[360912636,1747141700035,-151.0,0.00013698,2]
[360912637,1747141700067,-400.0,0.00013698,2]
[360912638,1747141700099,-400.0,0.00013698,2]
[360912639,1747141700131,-423.01,0.00013698,2]
[360912640,1747141700164,-766.62,0.00013698,2]
[360912641,1747141700196,-523.07,0.00013698,2]
[360912642,1747141700229,-400.0,0.00013698,2]
[360912643,1747141700267,-400.0,0.00013698,2]
[360912644,1747141700299,-400.0,0.00013698,2]
[360912645,1747141700333,-400.0,0.00013698,2]
[360912646,1747141700371,-400.0,0.00013698,2]
[360912647,1747141700406,-400.0,0.00013698,2]
[360912648,1747141700440,-756.98,0.00013698,2]
[360912649,1747141700474,-805.35,0.00013698,2]
[360912650,1747141700507,-639.65,0.00013698,2]
[360912651,1747141700541,-400.0,0.00013698,2]
[360912652,1747141700575,-570.87,0.00013698,2]
[360912653,1747141700610,-400.0,0.00013698,2]
[360912654,1747141700643,-400.0,0.00013698,2]
[360912655,1747141700678,-1318.42,0.00013698,2]
[360912656,1747141700712,-400.0,0.00013698,2]
[360912657,1747141700748,-400.0,0.00013698,2]
[360912658,1747141700782,-400.0,0.00013698,2]
[360912659,1747141700836,-500.0,0.00013698,2]
[360912660,1747141700869,-526.83714948,0.00013698,2]
[360912661,1747141700903,-236.84975778,0.00013698,2]
[360912662,1747141700937,-400.0,0.00013698,2]
[360912663,1747141700971,-400.0,0.00013698,2]
[360912664,1747141701005,-400.0,0.00013698,2]
[360912665,1747141701042,-799.39,0.00013698,2]
[360912666,1747141701077,-400.0,0.00013698,2]
[360912667,1747141701111,-400.0,0.00013698,2]
[360912668,1747141701147,-450.21,0.00013698,2]
[360912669,1747141701183,-400.0,0.00013698,2]
[360912670,1747141701218,-400.0,0.00013698,2]
[360912671,1747141701252,-400.0,0.00013698,2]
[360912672,1747141701286,-1286.95,0.00013698,2]
[360912673,1747141701321,-400.0,0.00013698,2]
[360912674,1747141701357,-1505.28,0.00013698,2]
[360912675,1747141701394,-205.38265348,0.00013698,2]
[360912676,1747141701428,-400.0,0.00013698,2]
[360912677,1747141701463,-400.0,0.00013698,2]
[360912678,1747141701498,-400.0,0.00013698,2]
[360912679,1747141701533,-400.0,0.00013698,2]
[360912680,1747141701568,-856.01,0.00013698,2]
[360912681,1747141701602,-400.0,0.00013698,2]
[360912682,1747141701639,-993.61,0.00013698,2]
[360912683,1747141701674,-400.0,0.00013698,2]
[360912684,1747141701708,-1181.04,0.00013698,2]
[360912685,1747141701741,-151.0,0.00013698,2]
[360912686,1747141701777,-400.0,0.00013698,2]
[360912687,1747141701811,-151.0,0.00013698,2]
[360912688,1747141701847,-151.0,0.00013698,2]
[360912689,1747141701880,-151.0,0.00013698,2]
[360912690,1747141701913,-151.0,0.00013698,2]
[360912691,1747141701947,-400.0,0.00013698,2]
[360912692,1747141701981,-151.0,0.00013698,2]
[360912693,1747141702212,-400.0,0.00013698,2]
[360912694,1747141702293,-154.240683,0.00013698,2]
[360912695,1747141702327,-512.64181135,0.00013698,2]
[360912696,1747141702360,-510.52813491,0.00013698,2]
[360912697,1747141702393,-402.81,0.00013698,2]
[360912698,1747141702426,-466.62,0.00013698,2]
[360912699,1747141702458,-400.0,0.00013698,2]
[360912700,1747141702490,-400.0,0.00013698,2]
[360912701,1747141702526,-2684.38,0.00013698,2]
[360912702,1747141702559,-400.0,0.00013698,2]
[360912703,1747141702606,-400.0,0.00013698,2]
[360912704,1747141702643,-401.71,0.00013698,2]
[360912705,1747141702678,-400.0,0.00013698,2]
[360912706,1747141702713,-400.0,0.00013698,2]
[360912707,1747141702749,-400.0,0.00013698,2]
[360912708,1747141702784,-494.93,0.00013698,2]
[360912709,1747141702820,-2159.12,0.00013698,2]
[360912710,1747141702853,-400.0,0.00013698,2]
[360912711,1747141702887,-501.2329953,0.00013698,2]
[360912712,1747141702921,-400.0,0.00013698,2]
[360912713,1747141702956,-500.0,0.00013698,2]
[360912714,1747141702991,-400.0,0.00013698,2]
[360912715,1747141703027,-400.0,0.00013698,2]
[360912716,1747141703063,-459.64,0.00013698,2]
[360912717,1747141703097,-1045.79653897,0.00013698,2]
[360912718,1747141703131,-151.0,0.00013698,2]
[360912719,1747141703166,-151.0,0.00013698,2]
[360912720,1747141703200,-151.0,0.00013698,2]
[360912721,1747141703234,-400.0,0.00013698,2]
[360912722,1747141703273,-151.0,0.00013698,2]
[360912723,1747141703310,-151.0,0.00013698,2]
[360912724,1747141703348,-261.656043,0.00013698,2]
[360912725,1747141703381,-400.0,0.00013698,2]
[360912726,1747141703416,-1441.77,0.00013698,2]
[360912727,1747141703449,-400.0,0.00013698,2]
[360912728,1747141703482,-400.0,0.00013698,2]
[360912729,1747141703516,-400.0,0.00013698,2]
[360912730,1747141703550,-3122.66,0.00013698,2]
[360912731,1747141703583,-400.0,0.00013698,2]
[360912732,1747141703618,-896.12,0.00013698,2]
[360912733,1747141703653,-400.0,0.00013698,2]
[360912734,1747141703689,-400.38502067,0.00013698,2]
[360912735,1747141703725,-701.29,0.00013698,2]
[360912736,1747141703760,-400.0,0.00013698,2]
[360912737,1747141703795,-400.0,0.00013698,2]
[360912738,1747141703830,-779.89,0.00013698,2]
[360912739,1747141703864,-867.83,0.00013698,2]
[360912740,1747141703897,-400.0,0.00013698,2]
[360912741,1747141703932,-404.07,0.00013698,2]
[360912742,1747141703967,-624.11,0.00013698,2]
[360912743,1747141704001,-6971.19,0.00013698,2]
[360912744,1747141704035,-400.0,0.00013698,2]
[360912745,1747141704070,-400.0,0.00013698,2]
[360912746,1747141704104,-400.0,0.00013698,2]
[360912747,1747141704137,-400.72595718,0.00013698,2]
[360912748,1747141704171,-400.0,0.00013698,2]
[360912749,1747141704206,-400.0,0.00013698,2]
[360912750,1747141704245,-1303.19,0.00013698,2]
[360912751,1747141704279,-400.0,0.00013698,2]
[360912752,1747141704318,-6361.34,0.00013698,2]
[360912753,1747141704354,-401.16689707,0.00013698,2]
[360912754,1747141704390,-400.0,0.00013698,2]
[360912755,1747141704426,-400.0,0.00013698,2]
[360912756,1747141704462,-400.0,0.00013698,2]
[360912757,1747141704502,-400.0,0.00013698,2]
[360912758,1747141704542,-400.0,0.00013698,2]
[360912759,1747141704577,-1164.12,0.00013698,2]
[360912760,1747141704613,-400.0,0.00013698,2]
[360912761,1747141704650,-574.81,0.00013698,2]
[360912762,1747141704688,-436.67,0.00013698,2]
[360912763,1747141704725,-400.0,0.00013698,2]
[360912764,1747141704762,-400.0,0.00013698,2]
[360912765,1747141704798,-400.0,0.00013698,2]
[360912766,1747141704835,-400.0,0.00013698,2]
[360912767,1747141704872,-151.0,0.00013698,2]
[360912768,1747141704908,-151.0,0.00013698,2]
[360912769,1747141704944,-151.0,0.00013698,2]
[360912770,1747141704980,-151.0,0.00013698,2]
[360912771,1747141705019,-400.0,0.00013698,2]
[360912772,1747141705054,-151.0,0.00013698,2]
[360912773,1747141705089,-151.0,0.00013698,2]
[360912774,1747141705125,-151.0,0.00013698,2]
[360912775,1747141705161,-400.0,0.00013698,2]
[360912776,1747141705196,-151.0,0.00013698,2]
[360912777,1747141705232,-400.34518435,0.00013698,2]
[360912778,1747141705274,-487.46,0.00013698,2]
[360912779,1747141705311,-267.081428,0.00013698,2]
[360912780,1747141705346,-1001.18,0.00013698,2]
[360912781,1747141705380,-402.64732013,0.00013698,2]
[360912782,1747141705415,-400.0,0.00013698,2]
[360912783,1747141705449,-3606.52,0.00013698,2]
[360912784,1747141705484,-1199.8,0.00013698,2]
[360912785,1747141705521,-400.0,0.00013698,2]
[360912786,1747141705558,-400.0,0.00013698,2]
[360912787,1747141705596,-965.320221,0.00013698,2]
[360912788,1747141705630,-965.320221,0.00013698,2]
[360912789,1747141705667,-965.320221,0.00013698,2]
[360912790,1747141705703,-965.320221,0.00013698,2]
[360912791,1747141705740,-965.320221,0.00013698,2]
[360912792,1747141705780,-336.143517,0.00013698,2]
[360912793,1747141705818,-336.143517,0.00013698,2]
[360912794,1747141705856,-400.0,0.00013698,2]
[360912795,1747141705893,-336.143517,0.00013698,2]
[360912796,1747141705930,-965.320221,0.00013698,2]
[360912797,1747141705966,-336.143517,0.00013698,2]
[360912798,1747141706003,-965.320221,0.00013698,2]
[360912799,1747141706040,-336.143517,0.00013698,2]
[360912800,1747141706077,-336.143517,0.00013698,2]
[360912801,1747141706111,-965.320221,0.00013698,2]
[360912802,1747141706147,-336.143517,0.00013698,2]
[360912803,1747141706182,-965.320221,0.00013698,2]
[360912804,1747141706215,-400.0,0.00013698,2]
[360912805,1747141706251,-336.143517,0.00013698,2]
[360912806,1747141706286,-965.320221,0.00013698,2]
[360912807,1747141706321,-336.143517,0.00013698,2]
[360912808,1747141706356,-1422.77,0.00013698,2]
[360912809,1747141706388,-401.46,0.00013698,2]
[360912810,1747141706423,-965.320221,0.00013698,2]
[360912811,1747141706704,-336.143517,0.00013698,2]
[360912812,1747141706738,-336.143517,0.00013698,2]
[360912813,1747141706773,-336.143517,0.00013698,2]
[360912814,1747141706806,-965.320221,0.00013698,2]
[360912815,1747141706839,-1826.4,0.00013698,2]
[360912816,1747141706872,-336.143517,0.00013698,2]
[360912817,1747141706904,-965.320221,0.00013698,2]
[360912818,1747141706937,-965.320221,0.00013698,2]
[360912819,1747141706970,-968.2,0.00013698,2]
[360912820,1747141707006,-965.320221,0.00013698,2]
[360912821,1747141707039,-336.143517,0.00013698,2]
[360912822,1747141707073,-965.320221,0.00013698,2]
[360912823,1747141707107,-400.0,0.00013698,2]
[360912824,1747141707140,-336.143517,0.00013698,2]
[360912825,1747141707175,-965.320221,0.00013698,2]
[360912826,1747141707210,-336.143517,0.00013698,2]
[360912827,1747141707245,-919.35207148,0.00013698,2]
[360912828,1747141708960,-500.0,0.00013673,2]
[360912829,1747141708994,-500.0,0.00013673,2]
[360912830,1747141709030,-500.0,0.00013673,2]
[360912831,1747141709063,-485.41683785,0.00013673,2]
[360912832,1747141709095,-450.50076872,0.00013673,2]
[360912833,1747141709127,-45.96814952,0.00013698,2]
[360912834,1747141709158,-336.143517,0.00013698,2]
[360912835,1747141709188,-965.320221,0.00013698,2]
[360912836,1747141709219,-336.143517,0.00013698,2]
[360912837,1747141709254,-965.320219,0.00013698,2]
[360912838,1747141709284,-336.143517,0.00013698,2]
[360912839,1747141709320,-336.143508,0.00013698,2]
[360912840,1747141709357,-300.55044,0.00013698,2]
[360912841,1747141709388,-400.0,0.00013698,2]
[360912842,1747141709420,-2316.25,0.00013698,2]
[360912843,1747141709451,-400.0,0.00013698,2]
[360912844,1747141709483,-400.0,0.00013698,2]
[360912845,1747141709518,-400.0,0.00013698,2]
[360912846,1747141709550,-400.0,0.00013698,2]
[360912847,1747141709581,-503.88,0.00013698,2]
[360912848,1747141709614,-651.45,0.00013698,2]
[360912849,1747141709647,-710.31,0.00013698,2]
[360912850,1747141709679,-400.0,0.00013698,2]
[360912851,1747141709710,-400.0,0.00013698,2]
[360912852,1747141709743,-794.6,0.00013698,2]
[360912853,1747141709779,-400.0,0.00013698,2]
[360912854,1747141710082,-644.64,0.00013698,2]
[360912855,1747141710116,-947.51,0.00013698,2]
[360912856,1747141710148,-200.79543586,0.00013698,2]
[360912857,1747141710180,-685.0,0.00013698,2]
[360912858,1747141710215,-479.03,0.00013698,2]
[360912859,1747141710250,-285.28459541,0.00013698,2]
[360912860,1747141710283,-400.0,0.00013698,2]
[360912861,1747141710315,-400.0,0.00013698,2]
[360912862,1747141710353,-229.47417035,0.00013698,2]
[360912863,1747141710392,-432.9416649,0.00013698,2]
[360912864,1747141710427,-400.0,0.00013698,2]
[360912865,1747141710461,-1559.78,0.00013698,2]
[360912866,1747141710494,-463.63,0.00013698,2]
[360912867,1747141710533,-400.0,0.00013698,2]
[360912868,1747141710570,-1173.89,0.00013698,2]
[360912870,1747141710606,-400.0,0.00013698,2]
[360912871,1747141710642,-647.35,0.00013698,2]
[360912872,1747141710676,-733.49,0.00013698,2]
[360912873,1747141710711,-400.0,0.00013698,2]
[360912874,1747141710745,-400.0,0.00013698,2]
[360912875,1747141710782,-764.25,0.00013698,2]
[360912876,1747141710816,-400.0,0.00013698,2]
[360912877,1747141710850,-1153.89,0.00013698,2]
[360912878,1747141710884,-400.0,0.00013698,2]
[360912879,1747141710918,-165.53963509,0.00013698,2]
[360912880,1747141710951,-400.0,0.00013698,2]
[360912881,1747141710985,-400.0,0.00013698,2]
[360912882,1747141711018,-400.0,0.00013698,2]
[360912883,1747141711052,-1290.98,0.00013698,2]
[360912884,1747141711096,-400.0,0.00013698,2]
[360912885,1747141711128,-493.02,0.00013698,2]
[360912886,1747141711159,-466.771021,0.00013698,2]
[360912887,1747141711192,-466.771021,0.00013698,2]
[360912888,1747141711223,-811.25,0.00013698,2]
[360912889,1747141711256,-466.771021,0.00013698,2]
[360912890,1747141711288,-466.771021,0.00013698,2]
[360912891,1747141711319,-466.771021,0.00013698,2]
[360912892,1747141711349,-477.83,0.00013698,2]
[360912893,1747141711380,-466.771021,0.00013698,2]
[360912894,1747141711412,-466.771021,0.00013698,2]
[360912895,1747141711443,-466.771021,0.00013698,2]
[360912896,1747141711475,-466.771021,0.00013698,2]
[360912897,1747141711507,-756.19,0.00013698,2]
[360912898,1747141711538,-466.771021,0.00013698,2]
[360912899,1747141711569,-400.0,0.00013698,2]
[360912900,1747141711602,-466.771021,0.00013698,2]
[360912901,1747141711635,-466.771021,0.00013698,2]
[360912902,1747141711669,-466.771021,0.00013698,2]
[360912903,1747141711703,-466.771021,0.00013698,2]
[360912904,1747141711736,-466.771021,0.00013698,2]
[360912905,1747141711769,-466.771021,0.00013698,2]
[360912906,1747141711805,-151.0,0.00013698,2]
[360912907,1747141711838,-151.0,0.00013698,2]
[360912908,1747141711869,-403.04,0.00013698,2]
[360912909,1747141711899,-2857.36,0.00013698,2]
[360912910,1747141711928,-466.771021,0.00013698,2]
[360912911,1747141711958,-151.0,0.00013698,2]
[360912912,1747141711988,-466.771021,0.00013698,2]
[360912913,1747141712019,-151.0,0.00013698,2]
[360912914,1747141712049,-466.771021,0.00013698,2]
[360912915,1747141712078,-466.771018,0.00013698,2]
[360912916,1747141712109,-400.0,0.00013698,2]
[360912917,1747141712139,-730.72,0.00013698,2]
[360912918,1747141712170,-400.0,0.00013698,2]
[360912919,1747141712201,-400.0,0.00013698,2]
[360912920,1747141712232,-400.0,0.00013698,2]
[360912921,1747141712266,-2695.99,0.00013698,2]
[360912922,1747141712297,-400.0,0.00013698,2]
[360912923,1747141712328,-400.0,0.00013698,2]
[360912924,1747141712358,-251.73283917,0.00013698,2]
[360912925,1747141712389,-548.14,0.00013698,2]
[360912926,1747141712420,-400.0,0.00013698,2]
[360912927,1747141712451,-400.0,0.00013698,2]
[360912928,1747141712481,-400.0,0.00013698,2]
[360912929,1747141712513,-400.0,0.00013698,2]
[360912930,1747141712545,-400.0,0.00013698,2]
[360912931,1747141712576,-400.0,0.00013698,2]
[360912932,1747141712613,-321.46909793,0.00013698,2]
[360912933,1747141712649,-400.0,0.00013698,2]
[360912934,1747141712683,-763.88,0.00013698,2]
[360912935,1747141712716,-792.71,0.00013698,2]
[360912936,1747141712750,-400.0,0.00013698,2]
[360912937,1747141712787,-400.0,0.00013698,2]
[360912938,1747141712827,-400.0,0.00013698,2]
[360912939,1747141712860,-400.0,0.00013698,2]
[360912940,1747141712893,-994.63,0.00013698,2]
[360912941,1747141712925,-1371.05,0.00013698,2]
[360912942,1747141712958,-400.0,0.00013698,2]
[360912943,1747141712988,-603.5,0.00013698,2]
[360912944,1747141713021,-400.0,0.00013698,2]
[360912945,1747141713053,-672.41,0.00013698,2]
[360912946,1747141713086,-938.21,0.00013698,2]
[360912947,1747141713120,-1328.1,0.00013698,2]
[360912948,1747141713151,-626.56,0.00013698,2]
[360912949,1747141713187,-888.7,0.00013698,2]
[360912950,1747141713220,-400.0,0.00013698,2]
[360912951,1747141713257,-1094.68,0.00013698,2]
[360912952,1747141713290,-429.18,0.00013698,2]
[360912953,1747141713323,-515.38,0.00013698,2]
[360912954,1747141713356,-400.0,0.00013698,2]
[360912955,1747141713390,-544.53501989,0.00013698,2]
[360912956,1747141713423,-1775.88,0.00013698,2]
[360912957,1747141713456,-383.10934837,0.00013698,2]
[360912958,1747141713491,-400.0,0.00013698,2]
[360912959,1747141713529,-1180.4,0.00013698,2]
[360912960,1747141713564,-1044.34,0.00013698,2]
[360912961,1747141713599,-400.0,0.00013698,2]
[360912962,1747141713634,-1000.0,0.00013698,2]
[360912963,1747141713668,-2089.15,0.00013698,2]
[360912964,1747141713702,-520.74100257,0.00013698,2]
[360912965,1747141713735,-402.43105218,0.00013698,2]
[360912966,1747141713770,-1837.01,0.00013698,2]
[360912967,1747141713805,-814.05,0.00013698,2]
[360912968,1747141713839,-400.0,0.00013698,2]
[360912969,1747141713872,-151.0,0.00013698,2]
[360912970,1747141713908,-1036.92,0.00013698,2]
[360912971,1747141713944,-151.0,0.00013698,2]
[360912972,1747141714189,-206.01619118,0.00013698,2]
[360912973,1747141714225,-151.0,0.00013698,2]
[360912974,1747141714259,-605.58,0.00013698,2]
[360912975,1747141714292,-151.0,0.00013698,2]
[360912976,1747141714325,-151.0,0.00013698,2]
[360912977,1747141714358,-151.0,0.00013698,2]
[360912978,1747141714391,-151.0,0.00013698,2]
[360912979,1747141714424,-2491.82,0.00013698,2]
[360912980,1747141714458,-151.0,0.00013698,2]
[360912981,1747141714493,-400.0,0.00013698,2]
[360912982,1747141714531,-556.08,0.00013698,2]
[360912983,1747141714566,-688.99,0.00013698,2]
[360912984,1747141714600,-509.18,0.00013698,2]
[360912985,1747141714634,-400.0,0.00013698,2]
[360912986,1747141714669,-400.0,0.00013698,2]
[360912987,1747141714704,-151.0,0.00013698,2]
[360912988,1747141714738,-2913.69,0.00013698,2]
[360912989,1747141714771,-358.0,0.00013698,2]
[360912990,1747141714805,-914.85,0.00013698,2]
[360912991,1747141714840,-275.09960921,0.00013698,2]
[360912992,1747141714875,-400.0,0.00013698,2]
[360912993,1747141714909,-401.14413636,0.00013698,2]
[360912994,1747141714942,-400.0,0.00013698,2]
[360912995,1747141714976,-400.0,0.00013698,2]
[360912996,1747141715009,-712.03,0.00013698,2]
[360912997,1747141715042,-400.0,0.00013698,2]
[360912998,1747141715075,-400.0,0.00013698,2]
[360912999,1747141715106,-400.0,0.00013698,2]
[360913000,1747141715137,-400.0,0.00013698,2]
[360913001,1747141715170,-400.0,0.00013698,2]
[360913002,1747141715202,-400.0,0.00013698,2]
[360913003,1747141715235,-2372.57,0.00013698,2]
[360913004,1747141715272,-400.0,0.00013698,2]
[360913005,1747141715306,-400.0,0.00013698,2]
[360913006,1747141715339,-614.26,0.00013698,2]
[360913007,1747141715372,-2214.62,0.00013698,2]
[360913008,1747141715409,-645.24,0.00013698,2]
[360913009,1747141715446,-400.0,0.00013698,2]
[360913010,1747141715484,-401.24195767,0.00013698,2]
[360913011,1747141715524,-400.0,0.00013698,2]
[360913012,1747141715563,-454.71,0.00013698,2]
[360913013,1747141715599,-773.59,0.00013698,2]
[360913014,1747141715634,-400.0,0.00013698,2]
[360913015,1747141715669,-400.0,0.00013698,2]
[360913016,1747141715705,-2390.59,0.00013698,2]
[360913017,1747141715741,-400.0,0.00013698,2]
[360913018,1747141715778,-400.0,0.00013698,2]
[360913019,1747141715815,-471.55,0.00013698,2]
[360913020,1747141715850,-1850.46,0.00013698,2]
[360913021,1747141715885,-2159.66,0.00013698,2]
[360913022,1747141715919,-400.63630823,0.00013698,2]
[360913023,1747141715953,-400.0,0.00013698,2]
[360913024,1747141715987,-400.0,0.00013698,2]
[360913025,1747141716022,-400.0,0.00013698,2]
[360913026,1747141716057,-400.0,0.00013698,2]
[360913027,1747141716092,-4661.32,0.00013698,2]
[360913028,1747141716126,-2912.17,0.00013698,2]
[360913029,1747141716162,-531.63,0.00013698,2]
[360913030,1747141716197,-400.0,0.00013698,2]
[360913031,1747141716232,-231.840313,0.00013698,2]
[360913032,1747141716269,-231.840313,0.00013698,2]
[360913033,1747141716303,-231.840313,0.00013698,2]
[360913034,1747141716336,-400.0,0.00013698,2]
[360913035,1747141716370,-400.0,0.00013698,2]
[360913036,1747141716404,-231.840313,0.00013698,2]
[360913037,1747141716436,-231.840313,0.00013698,2]
[360913038,1747141716468,-231.840313,0.00013698,2]
[360913039,1747141716501,-400.0,0.00013698,2]
[360913040,1747141716537,-512.23,0.00013698,2]
[360913041,1747141716572,-234.062603,0.00013698,2]
[360913042,1747141716606,-231.840313,0.00013698,2]
[360913043,1747141716640,-234.062603,0.00013698,2]
[360913044,1747141716675,-231.840313,0.00013698,2]
[360913045,1747141716708,-3470.2,0.00013698,2]
[360913046,1747141716744,-234.062603,0.00013698,2]
[360913047,1747141716781,-231.840313,0.00013698,2]
[360913048,1747141716816,-234.062603,0.00013698,2]
[360913049,1747141716851,-231.840313,0.00013698,2]
[360913050,1747141716884,-234.062603,0.00013698,2]
[360913051,1747141716917,-231.840313,0.00013698,2]
[360913052,1747141716948,-400.0,0.00013698,2]
[360913053,1747141716980,-231.840313,0.00013698,2]
[360913054,1747141717012,-231.840313,0.00013698,2]
[360913055,1747141717044,-234.062603,0.00013698,2]
[360913056,1747141717076,-231.840313,0.00013698,2]
[360913057,1747141717108,-234.062603,0.00013698,2]
[360913058,1747141717141,-231.840313,0.00013698,2]
[360913059,1747141717175,-234.062603,0.00013698,2]
[360913060,1747141717208,-231.840313,0.00013698,2]
[360913061,1747141717245,-234.062603,0.00013698,2]
[360913062,1747141717281,-400.0,0.00013698,2]
[360913063,1747141717314,-234.062603,0.00013698,2]
[360913064,1747141717346,-231.840313,0.00013698,2]
[360913065,1747141717378,-234.062603,0.00013698,2]
[360913066,1747141717409,-231.840313,0.00013698,2]
[360913067,1747141717440,-5894.82,0.00013698,2]
[360913068,1747141717473,-234.062603,0.00013698,2]
[360913069,1747141717505,-231.840313,0.00013698,2]
[360913070,1747141717536,-234.062603,0.00013698,2]
[360913071,1747141717568,-400.0,0.00013698,2]
[360913072,1747141717599,-231.84031,0.00013698,2]
[360913073,1747141717631,-662.68,0.00013698,2]
[360913074,1747141717662,-465.26,0.00013698,2]
[360913075,1747141717699,-234.062603,0.00013698,2]
[360913076,1747141717735,-234.062603,0.00013698,2]
[360913077,1747141717774,-234.062603,0.00013698,2]
[360913078,1747141717810,-400.0,0.00013698,2]
[360913079,1747141717846,-234.062603,0.00013698,2]
[360913080,1747141717880,-234.062603,0.00013698,2]
[360913081,1747141717912,-234.062603,0.00013698,2]
[360913082,1747141717945,-1893.71,0.00013698,2]
[360913083,1747141717979,-234.062611,0.00013698,2]
[360913084,1747141718015,-1058.19,0.00013698,2]
[360913085,1747141718047,-1590.36,0.00013698,2]
[360913086,1747141718080,-2546.64,0.00013698,2]
[360913087,1747141718113,-1028.13,0.00013698,2]
[360913088,1747141718149,-400.0,0.00013698,2]
[360913089,1747141718378,-407.09,0.00013698,2]
[360913090,1747141718427,-400.0,0.00013698,2]
[360913091,1747141718460,-400.0,0.00013698,2]
[360913092,1747141718493,-439.87,0.00013698,2]
[360913093,1747141718528,-400.0,0.00013698,2]